fUST/lending_fUST_20250817
["ID","MTS","AMOUNT","RATE_DAILY","PERIOD"]
[379659885,1755363040470,-480.0,0.00021917,3]
[379659886,1755363040480,-957.23,0.00021917,3]
[379659887,1755363040490,-441.07486032,0.00021917,3]
[379659888,1755363040501,-677.41,0.00021917,3]
[379659889,1755363040512,-480.0,0.00021917,3]
[379659890,1755363040521,-480.0,0.00021917,3]
[379659891,1755363040531,-573.95,0.00021917,3]
[379659892,1755363040541,-151.0,0.00021917,2]
[379659893,1755363040550,-151.0,0.00021917,2]
[379659894,1755363040560,-151.0,0.00021917,2]
[379659895,1755363040571,-151.0,0.00021917,2]
[379659896,1755363040580,-1126.608548,0.00021917,2]
[379659897,1755363040590,-151.0,0.00021917,2]
[379659898,1755363040602,-1126.608548,0.00021917,2]
[379659899,1755363040611,-151.0,0.00021917,2]
[379659900,1755363040621,-1126.608548,0.00021917,2]
[379659901,1755363040631,-1822.67,0.00021917,3]
[379659902,1755363040640,-480.0,0.00021917,3]
[379659903,1755363040650,-151.0,0.00021917,2]
[379659904,1755363040660,-1126.608548,0.00021917,2]
[379659905,1755363040670,-151.0,0.00021917,2]
[379659906,1755363040679,-1126.608548,0.00021917,2]
[379659907,1755363040689,-151.0,0.00021917,2]
[379659908,1755363040699,-1126.608548,0.00021917,2]
[379659909,1755363040708,-480.0,0.00021917,3]
[379659910,1755363040718,-460.0,0.00021917,3]
[379659911,1755363040727,-480.0,0.00021917,3]
[379659912,1755363040736,-480.0,0.00021917,3]
[379659913,1755363040746,-480.0,0.00021917,3]
[379659914,1755363040756,-480.0,0.00021917,3]
[379659915,1755363040765,-963.298618,0.00021917,2]
[379659916,1755363040774,-480.0,0.00021917,3]
[379659917,1755363040783,-963.298618,0.00021917,2]
[379659918,1755363040792,-963.298618,0.00021917,2]
[379659919,1755363040801,-687.66,0.00021917,3]
[379659920,1755363040810,-963.298618,0.00021917,2]
[379659921,1755363040819,-963.298618,0.00021917,2]
[379659922,1755363040828,-963.298618,0.00021917,2]
[379659923,1755363040837,-253.00904472,0.00021917,3]
[379659924,1755363040846,-480.0,0.00021917,3]
[379659925,1755363040856,-480.0,0.00021917,3]
[379659926,1755363040865,-480.0,0.00021917,3]
[379659927,1755363040875,-442.92126181,0.00021917,3]
[379659928,1755363040884,-480.0,0.00021917,3]
[379659929,1755363040893,-1734.53,0.00021917,3]
[379659930,1755363040902,-480.0,0.00021917,3]
[379659931,1755363040911,-480.0,0.00021917,3]
[379659932,1755363040919,-480.0,0.00021917,3]
[379659933,1755363040928,-480.0,0.00021917,3]
[379659934,1755363040937,-857.16,0.00021917,3]
[379659935,1755363040947,-1037.1,0.00021917,3]
[379659936,1755363040957,-480.0,0.00021917,3]
[379659937,1755363040968,-480.0,0.00021917,3]
[379659938,1755363040977,-371.63816899,0.00021917,3]
[379659939,1755363040986,-2694.12,0.00021917,3]
[379659940,1755363040995,-460.0,0.00021917,3]
[379659941,1755363041004,-4410.45,0.00021917,3]
[379659942,1755363041013,-1449.87,0.00021917,3]
[379659943,1755363041021,-567.67,0.00021917,3]
[379659944,1755363041030,-480.0,0.00021917,3]
[379659945,1755363041039,-480.0,0.00021917,3]
[379659946,1755363041048,-1169.17,0.00021917,3]
[379659947,1755363041057,-480.0,0.00021917,3]
[379659948,1755363041066,-480.0,0.00021917,3]
[379659949,1755363041075,-480.0,0.00021917,3]
[379659950,1755363041084,-480.0,0.00021917,3]
[379659951,1755363041093,-480.0,0.00021917,3]
[379659952,1755363041103,-480.0,0.00021917,3]
[379659953,1755363041112,-480.0,0.00021917,3]
[379659954,1755363041122,-480.0,0.00021917,3]
[379659955,1755363041131,-480.0,0.00021917,3]
[379659956,1755363041141,-480.0,0.00021917,3]
[379659957,1755363041150,-480.0,0.00021917,3]
[379659958,1755363041159,-734.47,0.00021917,3]
[379659959,1755363041168,-480.0,0.00021917,3]
[379659960,1755363041178,-1234.04,0.00021917,3]
[379659961,1755363041187,-441.66460074,0.00021917,3]
[379659962,1755363041196,-480.0,0.00021917,3]
[379659963,1755363041207,-480.0,0.00021917,3]
[379659964,1755363041216,-494.0,0.00021917,3]
[379659965,1755363041225,-480.0,0.00021917,3]
[379659966,1755363041235,-480.0,0.00021917,3]
[379659967,1755363041244,-480.0,0.00021917,3]
[379659976,1755363041384,-420.0,0.00021917,3]
[379659977,1755363041394,-480.0,0.00021917,3]
[379659978,1755363041403,-480.0,0.00021917,3]
[379659979,1755363041413,-480.0,0.00021917,3]
[379659980,1755363041427,-480.0,0.00021917,3]
[379659981,1755363041437,-480.0,0.00021917,3]
[379659982,1755363041447,-480.0,0.00021917,3]
[379659983,1755363041456,-821.24,0.00021917,3]
[379659984,1755363041465,-480.0,0.00021917,3]
[379659985,1755363041474,-480.0,0.00021917,3]
[379659986,1755363041484,-480.0,0.00021917,3]
[379659987,1755363041494,-776.92,0.00021917,3]
[379659988,1755363041503,-480.0,0.00021917,3]
[379659989,1755363041513,-480.0,0.00021917,3]
[379659990,1755363041523,-185.17747,0.00021917,2]
[379659991,1755363041543,-480.0,0.00021917,3]
[379659992,1755363041554,-480.0,0.00021917,3]
[379659993,1755363041564,-856.29,0.00021917,3]
[379659994,1755363041574,-480.0,0.00021917,3]
[379659995,1755363041584,-185.17747,0.00021917,2]
[379659996,1755363041594,-480.0,0.00021917,3]
[379659997,1755363041605,-185.17747,0.00021917,2]
[379659998,1755363041616,-480.0,0.00021917,3]
[379659999,1755363041626,-895.64,0.00021917,2]
[379660000,1755363041636,-185.17747,0.00021917,2]
[379660001,1755363041646,-185.17747,0.00021917,2]
[379660002,1755363041655,-480.0,0.00021917,3]
[379660003,1755363041666,-185.17747,0.00021917,2]
[379660004,1755363041676,-151.0,0.00021917,2]
[379660005,1755363041686,-460.0,0.00021917,3]
[379660006,1755363041696,-151.0,0.00021917,2]
[379660007,1755363041706,-480.0,0.00021917,3]
[379660008,1755363041717,-480.0,0.00021917,3]
[379660009,1755363041728,-480.0,0.00021917,3]
[379660010,1755363041738,-460.0,0.00021917,3]
[379660011,1755363041748,-480.0,0.00021917,3]
[379660012,1755363041758,-480.0,0.00021917,3]
[379660013,1755363041768,-1053.75,0.00021917,3]
[379660014,1755363041778,-480.0,0.00021917,3]
[379660015,1755363041787,-480.0,0.00021917,3]
[379660016,1755363041797,-480.0,0.00021917,3]
[379660017,1755363041808,-1375.65,0.00021917,3]
[379660018,1755363041819,-1306.76,0.00021917,3]
[379660019,1755363041829,-480.0,0.00021917,3]
[379660020,1755363041839,-480.0,0.00021917,3]
[379660021,1755363041852,-480.0,0.00021917,3]
[379660022,1755363041863,-600.35,0.00021917,3]
[379660023,1755363041873,-480.0,0.00021917,3]
[379660024,1755363041883,-592.39,0.00021917,3]
[379660025,1755363041894,-480.0,0.00021917,3]
[379660026,1755363041904,-151.0,0.00021917,2]
[379660027,1755363041914,-480.0,0.00021917,3]
[379660028,1755363041924,-1086.17,0.00021917,3]
[379660029,1755363041936,-151.0,0.00021917,2]
[379660030,1755363041946,-466.62826441,0.00021917,3]
[379660031,1755363041956,-151.0,0.00021917,2]
[379660032,1755363041966,-2009.21,0.00021917,3]
[379660033,1755363041976,-480.0,0.00021917,3]
[379660034,1755363041986,-441.16782274,0.00021917,3]
[379660035,1755363041996,-480.0,0.00021917,3]
[379660036,1755363042007,-1031.11,0.00021917,3]
[379660037,1755363042017,-151.0,0.00021917,2]
[379660038,1755363042027,-157.69965,0.00021917,2]
[379660039,1755363042038,-422.85466851,0.00021917,3]
[379660040,1755363042048,-480.0,0.00021917,3]
[379660041,1755363042058,-480.0,0.00021917,3]
[379660042,1755363042068,-460.0,0.00021917,3]
[379660043,1755363042077,-467.87529036,0.00021917,3]
[379660044,1755363042088,-568.15,0.00021917,3]
[379660045,1755363042098,-480.0,0.00021917,3]
[379660046,1755363042108,-480.0,0.00021917,3]
[379660047,1755363042119,-480.0,0.00021917,3]
[379660048,1755363042129,-480.0,0.00021917,3]
[379660049,1755363042138,-460.0,0.00021917,3]
[379660050,1755363042148,-460.0,0.00021917,3]
[379660051,1755363042157,-437.04335926,0.00021917,2]
[379660052,1755363042167,-480.0,0.00021917,3]
[379660053,1755363042176,-480.0,0.00021917,3]
[379660054,1755363042186,-480.0,0.00021917,3]
[379660055,1755363042197,-480.0,0.00021917,3]
[379660056,1755363042207,-480.0,0.00021917,3]
[379660057,1755363042217,-2126.02,0.00021917,3]
[379660058,1755363042226,-480.0,0.00021917,3]
[379660059,1755363042237,-480.0,0.00021917,3]
[379660060,1755363042247,-460.0,0.00021917,3]
[379660061,1755363042257,-460.0,0.00021917,3]
[379660062,1755363042266,-1503.88,0.00021917,3]
[379660063,1755363042276,-1455.58,0.00021917,3]
[379660064,1755363042286,-480.0,0.00021917,3]
[379660065,1755363042296,-480.0,0.00021917,3]
[379660066,1755363042306,-480.0,0.00021917,3]
[379660068,1755363042315,-480.0,0.00021917,3]
[379660069,1755363042325,-480.0,0.00021917,3]
[379660070,1755363042335,-1110.66,0.00021917,3]
[379660072,1755363042345,-480.0,0.00021917,3]
[379660073,1755363042355,-480.0,0.00021917,3]
[379660074,1755363042365,-669.41,0.00021917,3]
[379660075,1755363042375,-480.0,0.00021917,3]
[379660076,1755363042385,-860.74,0.00021917,3]
[379660078,1755363042399,-480.0,0.00021917,3]
[379660080,1755363042408,-480.0,0.00021917,3]
[379660082,1755363042418,-420.0,0.00021917,3]
[379660083,1755363042432,-151.39579666,0.00021917,2]
[379660084,1755363042442,-480.0,0.00021917,3]
[379660085,1755363042452,-446.52583585,0.00021917,3]
[379660086,1755363042463,-1398.9,0.00021917,3]
[379660087,1755363042473,-1847.34,0.00021917,3]
[379660088,1755363042482,-480.0,0.00021917,3]
[379660089,1755363042492,-480.0,0.00021917,3]
[379660090,1755363042503,-460.0,0.00021917,3]
[379660091,1755363042513,-480.0,0.00021917,3]
[379660092,1755363042523,-480.0,0.00021917,3]
[379660093,1755363042539,-480.0,0.00021917,3]
[379660094,1755363042549,-480.0,0.00021917,3]
[379660095,1755363042559,-480.12399451,0.00021917,3]
[379660096,1755363042569,-539.07,0.00021917,3]
[379660097,1755363042579,-151.0,0.00021917,2]
[379660098,1755363042589,-151.0,0.00021917,2]
[379660099,1755363042598,-151.0,0.00021917,2]
[379660100,1755363042608,-480.0,0.00021917,3]
[379660101,1755363042618,-460.0,0.00021917,3]
[379660102,1755363042627,-480.0,0.00021917,3]
[379660103,1755363042637,-1205.06,0.00021917,3]
[379660104,1755363042649,-1237.67,0.00021917,3]
[379660105,1755363042660,-572.89,0.00021917,3]
[379660106,1755363042684,-1360.15,0.00021917,3]
[379660107,1755363042706,-1625.76,0.00021917,3]
[379660108,1755363042723,-480.0,0.00021917,3]
[379660109,1755363042734,-480.0,0.00021917,3]
[379660110,1755363042743,-669.56,0.00021917,3]
[379660111,1755363042754,-624.02,0.00021917,3]
[379660112,1755363042763,-480.0,0.00021917,3]
[379660113,1755363042774,-480.0,0.00021917,3]
[379660114,1755363042783,-1001.6,0.00021917,3]
[379660115,1755363042793,-1436.44,0.00021917,3]
[379660116,1755363042803,-3376.67,0.00021917,3]
[379660118,1755363042813,-480.0,0.00021917,3]
[379660120,1755363042822,-1027.99,0.00021917,3]
[379660122,1755363042832,-480.0,0.00021917,3]
[379660124,1755363042842,-681.36,0.00021917,3]
[379660126,1755363042852,-464.13650722,0.00021917,3]
[379660127,1755363042862,-480.0,0.00021917,3]
[379660128,1755363042872,-480.0,0.00021917,3]
[379660129,1755363042884,-480.0,0.00021917,3]
[379660130,1755363042893,-2018.7,0.00021917,3]
[379660131,1755363042904,-480.0,0.00021917,3]
[379660132,1755363042913,-460.0,0.00021917,3]
[379660133,1755363042923,-480.0,0.00021917,3]
[379660134,1755363042933,-480.0,0.00021917,3]
[379660135,1755363042943,-329.90867605,0.00021917,3]
[379660136,1755363042952,-480.0,0.00021917,3]
[379660137,1755363042962,-3496.1,0.00021917,3]
[379660138,1755363042972,-784.09,0.00021917,3]
[379660139,1755363042982,-229.17789819,0.00021917,3]
[379660140,1755363042992,-480.0,0.00021917,3]
[379660141,1755363043002,-715.17,0.00021917,3]
[379660142,1755363043011,-480.0,0.00021917,3]
[379660143,1755363043020,-480.0,0.00021917,3]
[379660144,1755363043030,-480.0,0.00021917,3]
[379660145,1755363043040,-1767.83,0.00021917,3]
[379660146,1755363043050,-480.0,0.00021917,3]
[379660147,1755363043059,-5244.31,0.00021917,3]
[379660148,1755363043070,-480.0,0.00021917,3]
[379660149,1755363043079,-151.0,0.00021917,2]
[379660150,1755363043089,-1845.38,0.00021917,3]
[379660151,1755363043099,-151.0,0.00021917,2]
[379660152,1755363043110,-151.0,0.00021917,2]
[379660153,1755363043120,-480.0,0.00021917,3]
[379660154,1755363043130,-480.0,0.00021917,3]
[379660155,1755363043140,-480.0,0.00021917,3]
[379660156,1755363043150,-811.3,0.00021917,3]
[379660157,1755363043159,-480.0,0.00021917,3]
[379660158,1755363043169,-480.0,0.00021917,3]
[379660159,1755363043180,-480.0,0.00021917,3]
[379660160,1755363043189,-480.0,0.00021917,3]
[379660161,1755363043199,-1065.18,0.00021917,3]
[379660162,1755363043209,-692.47,0.00021917,3]
[379660163,1755363043218,-480.0,0.00021917,3]
[379660164,1755363043228,-561.58,0.00021917,3]
[379660165,1755363043238,-480.0,0.00021917,3]
[379660166,1755363043248,-1079.36,0.00021917,3]
[379660169,1755363043257,-480.0,0.00021917,3]
[379660170,1755363043267,-480.0,0.00021917,3]
[379660171,1755363043277,-480.0,0.00021917,3]
[379660172,1755363043286,-15958.26,0.00021917,3]
[379660173,1755363043296,-480.0,0.00021917,3]
[379660174,1755363043306,-480.0,0.00021917,3]
[379660175,1755363043315,-1242.87,0.00021917,3]
[379660176,1755363043325,-182.03440314,0.00021917,3]
[379660177,1755363043335,-1548.38,0.00021917,3]
[379660178,1755363043345,-480.0,0.00021917,3]
[379660179,1755363043356,-480.0,0.00021917,3]
[379660180,1755363043366,-480.0,0.00021917,3]
[379660182,1755363043377,-551.98,0.00021917,3]
[379660184,1755363043386,-480.0,0.00021917,3]
[379660185,1755363043396,-5270.94,0.00021917,3]
[379660186,1755363043405,-480.0,0.00021917,3]
[379660187,1755363043415,-785.18,0.00021917,3]
[379660188,1755363043430,-340.0,0.00021917,3]
[379660189,1755363043441,-11450.47,0.00021917,3]
[379660190,1755363043450,-480.0,0.00021917,3]
[379660191,1755363043460,-480.0,0.00021917,3]
[379660192,1755363043470,-6023.08886635,0.00021917,3]
[379660194,1755363044296,-3996.07113365,0.00021917,3]
[379660195,1755363044308,-480.0,0.00021917,3]
[379660196,1755363044318,-1807.7,0.00021917,3]
[379660197,1755363044328,-423.40433545,0.00021917,3]
[379660198,1755363044337,-1304.81,0.00021917,3]
[379660199,1755363044345,-563.38,0.00021917,3]
[379660200,1755363044356,-929.07,0.00021917,3]
[379660201,1755363044364,-480.0,0.00021917,3]
[379660202,1755363044372,-473.89165101,0.00021917,3]
[379660203,1755363044380,-537.0,0.00021917,3]
[379660204,1755363044388,-1182.67288589,0.00021917,3]
[379660205,1755363044399,-2048.04126687,0.00021917,3]
[379660213,1755363045875,-267.95996595,0.00020866,2]
[379660214,1755363045886,-286.41710784,0.00020866,2]
[379660215,1755363045895,-453.00645884,0.00020866,2]
[379660216,1755363045905,-353.63887653,0.00020866,2]
[379660217,1755363045915,-287.51981429,0.00020866,2]
[379660218,1755363045925,-457.06584724,0.00021917,3]
[379660219,1755363045934,-480.0,0.00021917,3]
[379660220,1755363045943,-480.0,0.00021917,3]
[379660221,1755363045953,-480.0,0.00021917,3]
[379660222,1755363045962,-1386.39,0.00021917,3]
[379660223,1755363045973,-868.76,0.00021917,3]
[379660224,1755363045982,-480.0,0.00021917,3]
[379660225,1755363045991,-480.0,0.00021917,3]
[379660226,1755363046001,-480.0,0.00021917,3]
[379660227,1755363046011,-480.0,0.00021917,3]
[379660228,1755363046020,-1000.0,0.00021917,3]
[379660229,1755363046031,-480.0,0.00021917,3]
[379660230,1755363046040,-480.0,0.00021917,3]
[379660231,1755363046050,-480.0,0.00021917,3]
[379660232,1755363046059,-480.0,0.00021917,3]
[379660233,1755363046069,-480.0,0.00021917,3]
[379660234,1755363046078,-480.0,0.00021917,3]
[379660235,1755363046088,-465.36534231,0.00021917,3]
[379660236,1755363046098,-480.0,0.00021917,3]
[379660237,1755363046109,-1596.73,0.00021917,3]
[379660238,1755363046119,-480.0,0.00021917,3]
[379660239,1755363046128,-1346.38,0.00021917,3]
[379660240,1755363046138,-480.0,0.00021917,3]
[379660241,1755363046147,-480.0,0.00021917,3]
[379660242,1755363046158,-480.0,0.00021917,3]
[379660243,1755363046168,-480.0,0.00021917,3]
[379660244,1755363046177,-480.0,0.00021917,3]
[379660245,1755363046187,-480.0,0.00021917,3]
[379660246,1755363046196,-480.0,0.00021917,3]
[379660247,1755363046206,-402.90149611,0.00021917,3]
[379660248,1755363046216,-151.0,0.00021917,2]
[379660249,1755363046225,-592.61,0.00021917,3]
[379660250,1755363046235,-151.0,0.00021917,2]
[379660251,1755363046244,-460.47775795,0.00021917,3]
[379660252,1755363046254,-320.73024843,0.00021917,3]
[379660253,1755363046263,-480.0,0.00021917,3]
[379660254,1755363046272,-1335.69,0.00021917,3]
[379660255,1755363046281,-480.0,0.00021917,3]
[379660256,1755363046290,-480.0,0.00021917,3]
[379660257,1755363046300,-4745.15,0.00021917,3]
[379660258,1755363046309,-480.0,0.00021917,3]
[379660259,1755363046319,-514.8,0.00021917,3]
[379660260,1755363046328,-480.0,0.00021917,3]
[379660261,1755363046337,-480.0,0.00021917,3]
[379660262,1755363046346,-480.0,0.00021917,3]
[379660263,1755363046359,-480.0,0.00021917,3]
[379660264,1755363046368,-1613.95,0.00021917,3]
[379660265,1755363046378,-635.96,0.00021917,3]
[379660266,1755363046387,-480.0,0.00021917,2]
[379660267,1755363046396,-480.0,0.00021917,3]
[379660268,1755363046406,-480.0,0.00021917,3]
[379660269,1755363046416,-480.0,0.00021917,2]
[379660270,1755363046430,-480.0,0.00021917,3]
[379660271,1755363046439,-480.0,0.00021917,3]
[379660272,1755363046449,-166.170921,0.00021917,2]
[379660273,1755363046458,-166.170921,0.00021917,2]
[379660274,1755363046469,-480.0,0.00021917,3]
[379660275,1755363046479,-166.170921,0.00021917,2]
[379660276,1755363046489,-480.0,0.00021917,3]
[379660277,1755363046500,-480.0,0.00021917,3]
[379660278,1755363046510,-3035.74076301,0.00021917,3]
[379660279,1755363046522,-12219.18923699,0.00021917,3]
[379660280,1755363046531,-462.1417622,0.00021917,3]
[379660281,1755363046542,-410.57039772,0.00021917,3]
[379660282,1755363046555,-69.42960228,0.00021917,3]
[379660283,1755363046564,-591.94,0.00021917,3]
[379660284,1755363046574,-166.170921,0.00021917,2]
[379660285,1755363046584,-480.0,0.00021917,3]
[379660286,1755363046594,-166.170921,0.00021917,2]
[379660287,1755363046604,-166.170921,0.00021917,2]
[379660288,1755363046613,-566.2,0.00021917,3]
[379660289,1755363046622,-183.69465096,0.00021917,3]
[379660290,1755363046632,-480.0,0.00021917,3]
[379660291,1755363046642,-480.0,0.00021917,3]
[379660292,1755363046652,-480.0,0.00021917,3]
[379660293,1755363046662,-4510.94,0.00021917,3]
[379660294,1755363046672,-2612.69,0.00021917,3]
[379660295,1755363046682,-1574.38,0.00021917,3]
[379660296,1755363046691,-480.0,0.00021917,3]
[379660297,1755363046701,-440.0,0.00021917,3]
[379660298,1755363046711,-480.0,0.00021917,3]
[379660299,1755363046721,-834.43,0.00021917,3]
[379660300,1755363046730,-480.0,0.00021917,3]
[379660301,1755363046740,-480.0,0.00021917,3]
[379660302,1755363046749,-480.0,0.00021917,3]
[379660303,1755363046758,-480.0,0.00021917,3]
[379660304,1755363046768,-460.0,0.00021917,3]
[379660305,1755363046777,-480.0,0.00021917,3]
[379660306,1755363046787,-662.78268913,0.00021917,3]
[379660307,1755363046799,-1477.02550826,0.00021917,3]
[379660308,1755363046813,-2141.966395,0.00021917,3]
[379660314,1755363266451,876.1,0.00028767,120]
[379660315,1755363271156,5326.6049676,0.00020518,2]
[379660316,1755363288847,311.240853,0.00013699,2]
[379660317,1755363289059,311.240853,0.00020187,2]
[379660318,1755363336895,-300.0,0.00020765,2]
[379660319,1755363336924,-300.0,0.00020765,2]
[379660320,1755363336952,-272.0,0.00020765,2]
[379660321,1755363336981,-300.0,0.00020765,2]
[379660322,1755363337009,-1200.0,0.00020765,2]
[379660323,1755363337038,-36.92521684,0.00020766,2]
[379660324,1755363337173,-182.14956632,0.00020766,2]
[379660325,1755363337202,-500.0,0.00020766,2]
[379660326,1755363337229,-450.06021978,0.00020766,2]
[379660327,1755363337258,-500.0,0.00020766,2]
[379660328,1755363337286,-642.10341982,0.00020766,2]
[379660329,1755363337316,-206.5148423,0.00020766,2]
[379660330,1755363337626,-38.34390356,0.00020766,2]
[379660331,1755363337656,-500.0,0.00020766,2]
[379660332,1755363337685,-174.76632904,0.00020766,2]
[379660333,1755363337712,-500.0,0.00020766,2]
[379660334,1755363337740,-171.84259865,0.00020766,2]
[379660335,1755363337769,-606.37615371,0.00020766,2]
[379660336,1755363340095,-2214.34747249,0.00020767,2]
[379660337,1755363340226,-5000.0,0.00020767,2]
[379660338,1755363340433,-5000.0,0.00020767,2]
[379660339,1755363340624,-5000.0,0.00020767,2]
[379660340,1755363340871,-5000.0,0.00020767,2]
[379660341,1755363341218,-5000.0,0.00020767,2]
[379660342,1755363341337,-5000.0,0.00020767,2]
[379660343,1755363341847,-5000.0,0.00020767,2]
[379660344,1755363341940,-5000.0,0.00020767,2]
[379660345,1755363342115,-5000.0,0.00020767,2]
[379660346,1755363342337,-5000.0,0.00020767,2]
[379660347,1755363342563,-5000.0,0.00020767,2]
[379660348,1755363342756,-5000.0,0.00020767,2]
[379660349,1755363343017,-5000.0,0.00020767,2]
[379660350,1755363343201,-5000.0,0.00020767,2]
[379660351,1755363343449,-5000.0,0.00020767,2]
[379660352,1755363343650,-5000.0,0.00020767,2]
[379660353,1755363343821,-5000.0,0.00020767,2]
[379660354,1755363344004,-5000.0,0.00020767,2]
[379660355,1755363344167,-5000.0,0.00020767,2]
[379660356,1755363344354,-5000.0,0.00020767,2]
[379660357,1755363344525,-5000.0,0.00020767,2]
[379660358,1755363344718,-5000.0,0.00020767,2]
[379660359,1755363345027,-5000.0,0.00020767,2]
[379660360,1755363345170,-5000.0,0.00020767,2]
[379660361,1755363345379,-5000.0,0.00020767,2]
[379660362,1755363345591,-5000.0,0.00020767,2]
[379660363,1755363345792,-232.36827045,0.00020767,2]
[379660367,1755363583971,943.590666,0.00020682,2]
[379660389,1755363652394,3591.6727931,0.00020766,2]
[379660390,1755363652919,1886.0172069,0.00020766,2]
[379660391,1755363653741,480.0,0.00020687,2]
[379660392,1755363654802,788.43,0.00020685,2]
[379660393,1755363656129,512.87567466,0.00020687,2]
[379660394,1755363657238,480.0,0.00020688,2]
[379660395,1755363659650,480.0,0.00020687,2]
[379660396,1755363660956,372.67711844,0.00020685,2]
[379660397,1755363660980,87.78065431,0.00020685,2]
[379660398,1755363661050,806.1,0.00020687,2]
[379660399,1755363661969,460.0,0.00020687,2]
[379660400,1755363662521,1093.55,0.00020688,2]
[379660401,1755363662592,480.0,0.00020685,2]
[379660402,1755363663296,480.0,0.00020685,2]
[379660403,1755363663899,480.0,0.00020687,2]
[379660404,1755363665706,480.0,0.00020685,2]
[379660405,1755363665944,480.0,0.00020687,2]
[379660406,1755363666086,152.56934569,0.00020687,2]
[379660407,1755363666108,327.43065431,0.00020687,2]
[379660408,1755363666135,704.36,0.00020766,2]
[379660409,1755363668422,480.0,0.00020687,2]
[379660410,1755363671176,460.0,0.00020685,2]
[379660411,1755363671635,480.0,0.00020687,2]
[379660412,1755363673393,480.0,0.00020687,2]
[379660413,1755363675113,480.0,0.00020685,2]
[379660414,1755363675654,480.0,0.00020687,2]
[379660415,1755363681748,158.02387166,0.00020687,2]
[379660416,1755363683745,480.0,0.00020685,2]
[379660417,1755363684363,470.18547403,0.00020766,2]
[379660418,1755363684386,9.81452597,0.00020766,2]
[379660419,1755363685722,4990.18547403,0.00020685,2]
[379660420,1755363685750,5000.0,0.00020685,2]
[379660421,1755363685775,5000.0,0.00020685,2]
[379660422,1755363705586,1200.0,0.00020684,2]
[379660423,1755363723223,123.24612532,0.00020684,2]
[379660424,1755363723244,176.75387468,0.00020684,2]
[379660425,1755363731859,667.028992,0.00020064,2]
[379660426,1755363732248,401.051001,0.00020066,2]
[379660427,1755363732723,223.19261469,0.00020143,2]
[379660429,1755363782483,300.0,0.00020684,2]
[379660430,1755363795017,8231.97351763,0.00020685,2]
[379660431,1755363795040,10000.0,0.00020685,2]
[379660432,1755363795062,10000.0,0.00020685,2]
[379660433,1755363795083,10000.0,0.00020685,2]
[379660434,1755363795105,10000.0,0.00020685,2]
[379660435,1755363795127,1768.02648237,0.00020685,2]
[379660436,1755363822751,500.0,0.00019999,2]
[379660438,1755363833687,-1655.72452597,0.00020685,2]
[379660439,1755363833715,-480.0,0.00020685,2]
[379660440,1755363833742,-302.52119958,0.00020685,2]
[379660441,1755363833894,-123.5085489,0.00020685,2]
[379660442,1755363833922,-480.0,0.00020685,2]
[379660443,1755363833950,-1549.5029022,0.00020685,2]
[379660444,1755363834126,-693.9770978,0.00020685,2]
[379660445,1755363834153,-470.65913338,0.00020685,2]